bitfinex-derivatives/quotes_ETHF0:USTF0_20250110
["timestamp","ask_amount","ask_price","bid_price","bid_amount"]
[1736550256882,3.2078,3269.8,3269.2,0.473]
[1736550257081,0.30588,3269.7,3269.3,0.30591]
[1736550257382,0.4478,3269.6,3269.3,0.30591]
[1736550257977,0.4478,3269.6,3269.2,0.473]
[1736550258176,3.2078,3269.4,3268.7,2.12847608]
[1736550258378,3.2078,3269.4,3268.8,0.30596]
[1736550258577,0.30593,3269.2,3268.8,0.30596]
[1736550258778,0.30597,3268.8,3268.6,3.2078]
[1736550258982,3.07667608,3269.5,3268.4,0.30599]
[1736550258983,0.30595,3268.9,3268.4,0.30599]
[1736550259187,0.4821,3268.7,3268.4,0.30599]
[1736550259683,0.4821,3268.7,3268.1,2.12847608]
[1736550259888,0.4821,3268.7,3268.5,0.30598]
[1736550260486,0.30599,3268.6,3268.3,0.30601]
[1736550260789,0.78807,3268.7,3268.4,0.306]
[1736550261989,0.4821,3268.7,3268.1,2.12847608]
[1736550262389,0.30599,3268.6,3268.3,0.30601]
[1736550264389,0.306,3268.5,3268.2,0.30602]
[1736550264791,0.30599,3268.6,3268.3,0.30601]
[1736550265289,0.30599,3268.6,3268.5,0.00097752]
[1736550266284,0.4821,3268.7,3268.5,0.00097752]
[1736550266487,0.78808,3268.7,3268.5,0.30696752]
[1736550266685,3.2078,3269.0,3268.7,0.30597]
[1736550266997,0.30594,3269.1,3268.6,0.4636]
[1736550267195,0.30594,3269.1,3268.9,0.30595]
[1736550267892,0.30594,3269.1,3269.0,0.30594]
[1736550268093,0.74203,3269.2,3269.0,0.30594]
[1736550268684,0.4361,3269.2,3269.1,0.30594]
[1736550268892,3.2078,3269.4,3269.3,0.30592]
[1736550269389,3.51371,3269.4,3269.3,0.30592]
[1736550269598,3.2078,3269.4,3269.3,0.30592]
[1736550270695,3.2078,3270.2,3270.1,0.30584]
[1736550271401,3.2078,3270.2,3269.9,0.30585]
[1736550271593,3.2078,3270.2,3269.7,0.30588]
[1736550271594,0.30586,3270.0,3269.7,0.30588]
[1736550271902,3.51364,3270.2,3269.6,3.2078]
[1736550272104,0.30585,3270.1,3269.7,0.30588]
[1736550272493,3.2078,3270.2,3269.5,4.12916608]
[1736550272696,3.2078,3270.2,3269.7,0.30587]
[1736550272893,0.30585,3270.1,3269.7,0.30587]
[1736550273592,3.2078,3270.2,3269.7,0.30587]
[1736550273793,0.30584,3270.1,3269.7,0.30587]
[1736550274303,3.2078,3270.2,3269.6,3.2078]
[1736550274499,0.30584,3270.1,3269.8,0.30587]
[1736550275003,3.2078,3270.2,3269.5,2.12847608]
[1736550275209,3.2078,3270.2,3270.0,0.30585]
[1736550275500,3.2078,3270.2,3269.8,0.30586]
[1736550275888,3.2078,3270.2,3269.3,0.4586]
[1736550276094,3.2078,3269.6,3268.8,1.256]
[1736550276290,0.30595,3269.0,3268.7,0.30597]
[1736550276498,0.4428,3268.9,3268.7,0.30597]
[1736550276793,0.4428,3268.9,3268.8,0.30596]
[1736550277492,3.51373,3269.2,3268.6,2.12847608]
[1736550277493,3.2078,3269.2,3269.1,0.30594]
[1736550277695,3.2078,3269.2,3268.6,2.12847608]
[1736550277895,3.51373,3269.2,3268.9,0.30595]
[1736550279300,3.2078,3269.2,3268.5,0.00097752]
[1736550279502,0.30594,3269.0,3268.5,0.30695752]
[1736550279803,0.30596,3268.9,3268.5,0.30695752]
[1736550280203,0.4581,3268.8,3268.6,0.30598]
[1736550281096,0.4581,3268.8,3268.5,0.30696752]
[1736550281400,0.30598,3268.6,3268.5,0.00097752]
[1736550281997,3.6709,3268.7,3268.5,0.00097752]
[1736550282201,0.4631,3268.7,3268.6,0.30598]
[1736550282404,0.76908,3268.7,3268.5,0.00097752]
[1736550282599,0.4631,3268.7,3268.5,0.30696752]
[1736550282807,0.4581,3268.8,3268.7,0.30597]
[1736550283107,0.4581,3268.8,3268.5,0.00097752]
[1736550283708,0.30598,3268.7,3268.5,0.00097752]
[1736550285402,0.76407,3268.8,3268.5,0.30696752]
[1736550285604,0.4581,3268.8,3268.7,0.30597]
[1736550285909,0.4581,3268.8,3268.5,0.00097752]
[1736550286611,0.4581,3268.8,3268.6,0.30598]
[1736550286802,0.76407,3268.8,3268.5,0.30696752]
[1736550287004,0.30598,3268.7,3268.5,0.00097752]
[1736550288105,0.4581,3268.8,3268.7,0.30597]
[1736550288309,0.4581,3268.8,3268.6,0.30598]
[1736550288508,0.4581,3268.8,3268.5,0.00097752]
[1736550288708,0.4581,3268.8,3268.7,0.30597]
[1736550291010,2.58657608,3268.8,3268.5,0.00097752]
[1736550291202,3.2078,3268.6,3267.4,5.06166958]
[1736550291401,3.51385,3267.9,3267.5,0.30608]
[1736550291606,0.30606,3267.8,3267.5,0.30608]
[1736550292506,3.51385,3267.9,3267.5,0.30608]
[1736550292813,3.2078,3267.9,3267.8,0.30606]
[1736550293008,3.2078,3267.9,3267.8,2.43453608]
[1736550293801,0.4684,3268.6,3268.2,0.30602]
[1736550294009,0.306,3268.4,3268.1,0.30603]
[1736550294914,0.306,3268.4,3267.6,0.76519]
[1736550294915,0.30604,3268.0,3267.6,0.30607]
[1736550295103,0.30605,3267.9,3267.5,3.2078]
[1736550295309,0.30605,3267.9,3267.6,0.30607]
[1736550295704,0.30605,3267.9,3267.5,3.51388]
[1736550295914,0.30606,3267.8,3267.5,3.2078]
[1736550296113,0.4768,3267.7,3267.5,3.51388]
[1736550297016,0.4768,3267.7,3267.6,0.30608]
[1736550297415,0.4768,3267.7,3267.5,3.2078]
[1736550297610,0.4768,3267.7,3267.5,3.51388]
[1736550298307,0.4768,3267.7,3267.0,3.2078]
[1736550298513,3.2078,3267.4,3266.7,2.12847608]
[1736550298703,0.30612,3267.2,3266.8,0.30614]
[1736550299304,3.2078,3267.4,3266.6,3.2078]
[1736550299509,0.75093,3267.1,3266.7,0.30616]
[1736550299714,0.454,3267.0,3266.7,0.30616]
[1736550300614,0.454,3267.0,3266.8,0.30614]
[1736550300814,0.454,3267.0,3266.6,3.2078]
[1736550301116,0.454,3267.0,3266.8,0.30614]
[1736550301317,3.2078,3267.4,3267.3,0.3061]
[1736550301621,0.3061,3267.3,3266.7,0.4551]
[1736550301817,0.7803,3267.3,3266.9,0.30613]
[1736550303116,0.4742,3267.3,3266.9,0.30613]
[1736550303317,0.30615,3266.9,3266.6,3.51397]
[1736550303624,0.30616,3266.8,3266.6,3.2078]
[1736550303819,0.4351,3266.9,3266.7,0.30616]
[1736550305422,0.74124,3266.9,3266.7,0.30616]
[1736550306018,0.8697,3266.9,3266.6,3.2078]
[1736550306317,0.8697,3266.9,3266.8,0.30615]
[1736550309421,3.2078,3267.0,3266.9,0.30614]
[1736550310323,0.30616,3266.7,3266.0,2.12847608]
[1736550310517,0.30616,3266.7,3266.4,0.30618]
[1736550310726,0.30618,3266.5,3266.2,0.3062]
[1736550310920,0.4549,3266.4,3266.3,0.3062]
[1736550311527,0.4549,3266.4,3266.1,3.2078]
[1736550312127,0.3062,3266.3,3266.1,3.2078]
[1736550312723,0.3062,3266.3,3266.0,0.30622]
[1736550312928,0.3062,3266.3,3265.4,2.89418608]
[1736550312929,0.3062,3266.3,3265.5,1.07196]
[1736550313127,0.4549,3266.4,3265.4,2.12847608]
[1736550313425,0.3062,3266.3,3265.8,0.30624]
[1736550313734,0.30621,3266.2,3265.9,0.30623]
[1736550313934,0.30622,3266.1,3265.9,0.30623]
[1736550314129,0.30622,3266.1,3265.4,2.89418608]
[1736550314326,0.30622,3266.1,3265.4,2.12847608]
[1736550314527,0.30622,3266.1,3265.8,0.30624]
[1736550314724,0.4549,3266.4,3265.7,2.12847608]
[1736550314931,0.4628,3266.5,3266.1,3.2078]
[1736550315229,0.4628,3266.5,3266.4,0.30619]
[1736550315927,3.2078,3266.6,3266.0,2.89403608]
[1736550316231,3.2078,3266.6,3266.5,0.30618]
[1736550316432,0.30615,3266.9,3266.6,0.30617]
[1736550317530,0.9099,3267.0,3266.1,3.2078]
[1736550317737,1.21604,3267.0,3266.6,0.30616]
[1736550318434,3.2078,3266.8,3266.6,0.30616]
[1736550318630,3.2078,3266.8,3266.7,0.30616]
[1736550318836,3.2078,3267.6,3266.5,3.2078]
[1736550319136,3.2078,3267.6,3267.4,0.30609]
[1736550319331,3.2078,3267.6,3266.9,3.2078]
[1736550319532,0.3061,3267.4,3267.1,0.30612]
[1736550320031,3.51388,3267.6,3267.3,0.3061]
[1736550320237,3.2078,3267.6,3267.5,0.30609]
[1736550320935,3.2078,3267.6,3266.9,5.33627608]
[1736550321237,0.3061,3267.4,3267.1,0.30612]
[1736550323244,3.51388,3267.6,3267.3,0.3061]
[1736550323539,3.2078,3267.6,3266.9,3.2078]
[1736550323735,3.2078,3267.6,3267.5,0.30609]
[1736550326136,3.2078,3267.6,3267.5,2.43456608]
[1736550326535,3.2078,3267.6,3267.5,0.30609]
[1736550327437,0.4616,3268.1,3267.3,0.9096]
[1736550327637,0.4616,3268.1,3267.8,0.30605]
[1736550327837,0.4478,3268.2,3267.5,2.12847608]
[1736550328038,0.4493,3268.3,3268.2,0.30602]
[1736550328338,0.4493,3268.3,3267.8,3.2078]
[1736550328339,0.4692,3268.6,3267.8,5.33627608]
[1736550328544,3.2078,3268.7,3268.5,0.30599]
[1736550328841,3.2078,3268.7,3268.6,0.30598]
[1736550329737,0.4824,3268.9,3268.8,0.30596]
[1736550330740,3.2078,3269.5,3269.4,0.30591]
[1736550330936,3.2078,3269.5,3268.9,0.9274]
[1736550331147,3.2078,3269.5,3269.3,0.30591]
[1736550331345,3.5137,3269.5,3269.2,0.30592]
[1736550331643,0.30591,3269.4,3269.1,0.30593]
[1736550332037,3.2078,3269.5,3268.7,2.89340608]
[1736550332346,3.2078,3269.5,3269.3,0.30591]
[1736550332644,3.2078,3269.5,3269.4,0.30591]
[1736550334640,1.21927,3269.8,3269.0,2.12847608]
[1736550334840,1.21927,3269.8,3269.6,0.30589]
[1736550336945,1.21927,3269.8,3268.7,0.76493]
[1736550336946,0.9134,3269.8,3269.7,0.30588]
[1736550337139,3.2078,3269.9,3269.8,0.30587]
[1736550338341,3.2078,3269.9,3269.4,0.4725]
[1736550338648,0.4757,3269.8,3269.7,0.30588]
[1736550339343,3.2078,3269.9,3269.4,0.4725]
[1736550339553,3.2078,3269.9,3269.8,0.30587]
[1736550341045,3.2078,3269.9,3269.1,3.6495]
[1736550341254,0.3059,3269.5,3269.1,0.4417]
[1736550341549,1.23041,3269.4,3269.2,0.30592]
[1736550342047,1.23041,3269.4,3269.1,0.30593]
[1736550342252,0.9245,3269.4,3269.1,0.30593]
[1736550342748,0.9245,3269.4,3268.9,0.4763]
[1736550342950,0.9245,3269.4,3269.2,0.30592]
[1736550345448,0.9245,3269.4,3269.3,0.30592]
[1736550346350,0.9245,3269.4,3268.8,0.4707]
[1736550346548,0.30595,3269.0,3268.7,3.51377]
[1736550346754,0.30593,3269.2,3268.9,0.30595]
[1736550347049,0.30594,3269.1,3268.9,0.30595]
[1736550347445,0.30593,3269.2,3268.9,0.30595]
[1736550347851,3.2078,3269.1,3268.5,0.4718]
[1736550348051,0.30594,3269.0,3268.6,0.30597]
[1736550348560,0.30594,3269.0,3268.7,0.30597]
[1736550349751,0.30594,3269.0,3268.3,0.4458]
[1736550349959,3.2078,3269.1,3268.3,0.4458]
[1736550350153,3.2078,3269.1,3269.0,0.30594]
[1736550352151,3.2078,3269.1,3269.0,0.78614]
[1736550354355,3.2078,3269.1,3268.5,5.33627608]
[1736550354549,3.2078,3269.1,3268.5,2.12847608]
[1736550354752,3.2078,3269.1,3269.0,0.30594]
[1736550360465,0.9245,3269.4,3269.3,0.30592]
[1736550361461,0.9245,3269.4,3269.1,0.9085]
[1736550361657,0.9245,3269.4,3268.9,3.51375]
[1736550361862,0.30594,3269.0,3268.9,3.2078]
[1736550362163,0.30594,3269.0,3268.8,0.30596]
[1736550362164,0.30595,3269.0,3268.8,0.30596]
[1736550362357,0.4474,3268.9,3268.8,0.30596]
[1736550365869,3.2078,3269.3,3268.5,2.89345608]
[1736550366055,0.9245,3269.4,3269.3,0.30592]
[1736550367166,1.23041,3269.4,3269.3,0.30592]
[1736550367365,0.9245,3269.4,3268.7,0.76494]
[1736550367664,0.30594,3269.1,3268.5,2.12847608]
[1736550367973,3.2078,3269.2,3268.3,3.2078]
[1736550368168,0.30598,3268.7,3268.6,0.30597]
[1736550368367,3.2078,3269.2,3268.3,3.2078]
[1736550368564,0.4627,3268.6,3268.5,0.30599]
[1736550368868,3.2078,3269.2,3268.8,0.30596]
[1736550369066,0.30595,3269.0,3268.8,0.30596]
[1736550369264,0.30595,3269.0,3268.9,0.30595]
[1736550369461,0.30596,3268.8,3268.7,0.30597]
[1736550370570,0.4627,3269.1,3268.6,0.30598]
[1736550370769,1.21478,3268.7,3268.6,0.30598]
[1736550371265,4.1166,3268.7,3267.9,3.04127608]
[1736550371462,0.306,3268.4,3268.3,0.30601]
[1736550371767,4.1166,3268.7,3268.1,0.76508]
[1736550371966,0.30599,3268.6,3268.5,0.30599]
[1736550372671,4.42257,3268.7,3268.6,0.30598]
[1736550373763,4.1166,3268.7,3268.6,0.30598]
[1736550376465,0.9088,3268.7,3268.6,0.30598]
[1736550378166,1.21477,3268.7,3268.6,0.30598]
[1736550378671,0.9088,3268.7,3268.6,0.30598]
[1736550379179,1.21477,3268.7,3268.6,0.30598]
[1736550380865,0.9088,3268.7,3268.2,2.12847608]
[1736550381064,0.30599,3268.6,3268.2,2.12847608]
[1736550381266,0.9088,3268.7,3268.2,2.12847608]
[1736550381472,1.21478,3268.7,3268.5,0.30598]
[1736550382069,1.21478,3268.7,3268.6,0.30598]
[1736550382468,1.21478,3268.7,3268.2,2.12847608]
[1736550382771,1.21478,3268.7,3268.5,0.30599]
[1736550383171,1.21478,3268.7,3268.6,0.30598]
[1736550388273,0.9088,3268.7,3268.2,2.12847608]
[1736550388472,3.2078,3268.4,3267.9,0.9128]
[1736550388672,0.30603,3268.1,3268.0,0.30603]
[1736550389573,0.4385,3268.3,3268.0,0.30603]
[1736550389779,0.30603,3268.2,3268.0,0.30603]
[1736550390882,0.4804,3268.1,3268.0,0.30603]
[1736550396174,0.78643,3268.1,3267.9,1.21884]
[1736550398583,0.78643,3268.1,3267.6,2.12847608]
[1736550398584,0.30604,3268.0,3267.8,0.30605]
[1736550399086,0.4804,3268.1,3267.6,3.01297608]
[1736550399387,0.4804,3268.1,3267.6,3.31904608]
[1736550399388,0.30606,3267.9,3267.6,3.31904608]
[1736550399881,0.4586,3268.0,3267.6,3.31904608]
[1736550400084,0.30606,3267.8,3267.6,1.19057]
[1736550400485,0.30606,3267.8,3267.7,0.30607]
[1736550400786,0.30605,3267.9,3267.7,0.30607]
[1736550401477,0.30607,3267.7,3267.5,0.30608]
[1736550402787,3.6664,3268.0,3267.3,2.12847608]
[1736550402987,3.6664,3268.0,3267.9,0.30605]
[1736550403185,3.6664,3268.0,3267.3,2.12847608]
[1736550403488,0.30606,3267.8,3267.6,0.30607]
[1736550404084,3.6664,3268.0,3267.6,0.30607]
[1736550404385,3.6664,3268.0,3267.4,0.30609]
[1736550404386,0.30608,3267.6,3267.4,0.30609]
[1736550404883,0.75818,3267.6,3267.4,0.30609]
[1736550405987,0.30609,3267.4,3267.2,0.30611]
[1736550406184,0.4737,3267.3,3267.2,0.30611]
[1736550406383,0.4521,3267.6,3267.5,0.30609]
[1736550406580,0.4378,3267.7,3267.6,0.30608]
[1736550408381,0.30608,3267.6,3267.0,5.33627608]
[1736550408589,0.4378,3267.7,3267.0,5.33627608]
[1736550408796,0.3061,3267.4,3267.0,3.2078]
[1736550409087,0.3061,3267.4,3267.2,0.3061]
[1736550409295,0.3061,3267.4,3267.3,0.3061]
[1736550410489,0.3061,3267.4,3267.2,0.30611]
[1736550410683,0.30609,3267.5,3267.3,0.3061]
[1736550411184,0.4482,3267.4,3267.3,0.3061]
[1736550413994,0.4378,3267.7,3267.6,0.30608]
[1736550414794,0.4737,3267.9,3267.1,0.76531]
[1736550415090,3.2078,3268.0,3267.3,2.12847608]
[1736550415295,0.30607,3267.7,3267.5,0.30608]
[1736550415697,0.30609,3267.5,3267.4,0.30609]
[1736550416087,0.30609,3267.5,3267.0,5.77317608]
[1736550416391,0.30609,3267.5,3267.3,0.3061]
[1736550416589,0.4521,3267.5,3267.4,0.30609]
[1736550417899,0.4521,3267.5,3267.0,3.6447]
[1736550418096,0.30611,3267.3,3267.1,0.30612]
[1736550418295,0.4521,3267.5,3267.0,3.6447]
[1736550418492,0.3061,3267.4,3267.2,0.30611]
[1736550422799,0.3061,3267.3,3267.1,0.30612]
[1736550422993,0.3061,3267.3,3267.0,3.6447]
[1736550423197,0.3061,3267.4,3267.2,0.30611]
[1736550425295,0.3061,3267.4,3267.3,0.3061]
[1736550436203,0.4521,3267.5,3267.0,1.44913016]
[1736550436404,0.75819,3267.5,3267.4,0.30609]
[1736550439319,3.2078,3267.6,3267.5,0.30609]
[1736550439623,1.01223016,3268.0,3267.4,1.01223016]
[1736550439624,4.41964,3268.0,3267.4,1.01223016]
[1736550439817,4.41964,3268.0,3267.9,0.30605]
[1736550440023,4.1136,3268.0,3267.9,0.30605]
[1736550440920,5.43187016,3268.0,3267.9,0.30605]
[1736550442218,4.1136,3268.0,3267.9,0.30605]
[1736550443419,3.2078,3268.0,3267.9,0.30605]
[1736550443818,3.2078,3268.0,3267.9,0.77785]
[1736550444320,3.2078,3268.4,3268.3,0.30601]
[1736550444925,3.2078,3268.4,3268.3,0.75981]
[1736550445622,3.2078,3268.8,3268.7,0.30597]
[1736550445829,3.2078,3269.2,3269.0,0.30594]
[1736550446522,0.30592,3269.3,3268.5,3.97278]
[1736550446523,1.4283,3269.4,3269.3,0.30592]
[1736550446823,1.4283,3269.4,3268.9,1.01223016]
[1736550447026,1.73421,3269.4,3269.2,0.30592]
[1736550448629,1.73421,3269.4,3269.0,0.9063]
[1736550449027,1.73421,3269.4,3269.2,0.30592]
[1736550450627,1.73421,3269.4,3269.3,0.30592]
[1736550450628,1.4283,3269.4,3269.3,0.30592]
[1736550450827,3.2078,3269.6,3269.5,0.3059]
[1736550451131,3.2078,3269.6,3269.4,0.3059]
[1736550451640,3.2078,3269.6,3269.5,0.3059]
[1736550452330,3.2078,3269.6,3269.4,0.3059]
[1736550452731,3.2078,3269.6,3269.1,0.4408]
[1736550452732,3.2078,3269.6,3269.5,0.3059]
[1736550454735,1.69507,3269.8,3269.6,0.30588]
[1736550455031,1.69507,3269.8,3269.5,0.30589]
[1736550455231,1.3892,3269.8,3269.1,0.4408]
[1736550455435,0.30589,3269.6,3269.3,0.30591]
[1736550455828,0.30589,3269.6,3269.4,0.30591]
[1736550456633,0.30588,3269.7,3269.4,0.30591]
[1736550456935,1.3892,3269.8,3269.0,3.80693897]
[1736550457537,1.69507,3269.8,3269.5,0.30589]
[1736550457932,1.69507,3269.8,3269.0,3.80693897]
[1736550458136,3.2078,3270.0,3269.9,0.30586]
[1736550458637,3.2078,3270.0,3269.3,2.13576897]
[1736550458836,0.30587,3269.9,3269.6,0.30588]
[1736550459434,0.4758,3269.8,3269.6,0.30588]
[1736550459634,0.4758,3269.8,3269.7,0.30588]
[1736550462536,3.2078,3270.0,3269.9,0.30586]
[1736550464041,3.2078,3270.0,3269.8,0.30586]
[1736550464344,0.4678,3269.9,3269.8,0.30586]
[1736550468849,0.9111,3270.2,3269.9,0.30586]
[1736550469052,1.21694,3270.2,3269.9,0.30586]
[1736550469347,0.9111,3270.2,3269.9,0.30586]
[1736550469541,0.30584,3270.1,3269.9,0.30586]
[1736550471849,1.92165813,3270.2,3269.6,1.01055813]
[1736550472040,0.30586,3269.9,3269.7,0.30588]
[1736550472544,0.4548,3269.8,3269.7,0.30588]
[1736550480352,3.2078,3270.1,3270.0,0.30585]
[1736550480557,3.661,3270.1,3270.0,0.30585]
[1736550481856,0.4532,3270.1,3270.0,0.30585]
[1736550482958,0.75904,3270.1,3269.9,0.30586]
[1736550483158,0.30586,3270.0,3269.8,0.30586]
[1736550484060,0.75905,3270.1,3269.9,0.30586]
[1736550485954,0.4532,3270.1,3269.9,0.30586]
[1736550486762,3.661,3270.1,3269.9,0.30586]
[1736550487857,3.661,3270.1,3270.0,0.30585]
[1736550489163,3.661,3270.1,3269.5,1.01055813]
[1736550489363,3.96684,3270.1,3269.9,0.30586]
[1736550489560,3.661,3270.1,3269.5,1.01055813]
[1736550489763,3.661,3270.1,3270.0,0.30585]
[1736550493663,0.4532,3270.1,3270.0,0.30585]
[1736550494864,0.4532,3270.1,3270.0,0.78315]
[1736550497372,0.4532,3270.1,3269.7,1.01055813]
[1736550497568,0.75904,3270.1,3269.9,0.30585]
[1736550498174,0.75904,3270.1,3269.6,0.4499]
[1736550498371,0.4532,3270.1,3270.0,0.30585]
[1736550506275,6.1828,3270.5,3269.7,1.01055813]
[1736550506474,0.4788,3270.1,3270.0,0.30585]
[1736550509070,0.78464,3270.1,3270.0,0.30585]
[1736550509270,0.78464,3270.1,3269.5,1.77528813]
[1736550509566,0.78464,3270.1,3269.9,0.30585]
[1736550510073,0.78464,3270.1,3269.5,1.77528813]
[1736550510374,0.4788,3270.1,3270.0,0.30585]
[1736550511072,0.78464,3270.1,3270.0,0.30585]
[1736550512176,0.78464,3270.1,3269.5,1.77528813]
[1736550512476,0.30587,3269.8,3269.6,0.30588]
[1736550512678,0.4669,3269.7,3269.6,0.30588]
[1736550512976,0.9093,3269.7,3269.6,0.30588]
[1736550516282,0.3059,3269.5,3269.4,0.464]
[1736550516480,0.3059,3269.5,3269.3,0.78611]
[1736550516481,0.3059,3269.5,3269.3,0.30591]
[1736550516785,0.459,3269.4,3269.3,0.30591]
[1736550523186,0.459,3269.4,3269.3,1.31646813]
[1736550526192,4.42298,3269.7,3269.3,1.01055813]
[1736550526489,4.1171,3269.7,3269.3,1.01055813]
[1736550526690,4.42298,3269.7,3269.5,0.30589]
[1736550526879,4.1171,3269.7,3269.5,0.30589]
[1736550527088,0.30589,3269.6,3269.5,0.30589]
[1736550527389,4.1171,3269.7,3269.5,0.30589]
[1736550527690,3.6502,3269.7,3269.6,0.30589]
[1736550527891,3.6502,3269.7,3269.6,0.77359]
[1736550528390,3.6502,3269.7,3269.6,0.30589]
[1736550528991,0.4424,3269.7,3269.6,0.30589]
[1736550529393,0.74828,3269.7,3269.6,0.30589]
[1736550532600,0.4424,3269.7,3269.6,0.30589]
[1736550532894,0.4724,3269.9,3269.8,0.30587]
[1736550533104,0.75884,3270.2,3270.1,0.30584]
[1736550533411,0.30585,3270.0,3269.9,0.75226]
[1736550540217,0.30585,3270.0,3269.9,0.4464]
[1736550540522,0.30586,3269.9,3269.8,0.30586]
[1736550542314,0.30586,3269.9,3269.7,0.30587]
[1736550542814,0.30587,3269.8,3269.7,0.30587]
[1736550545722,0.453,3270.2,3269.7,0.30588]
[1736550545916,0.453,3270.2,3269.6,1.31643813]
[1736550546219,0.453,3270.2,3269.6,1.01055813]
[1736550546421,0.30588,3269.8,3269.6,1.01055813]
[1736550546621,0.30588,3269.7,3269.6,1.01055813]
[1736550546817,1.19548,3269.7,3269.6,1.01055813]
[1736550547420,1.90015813,3269.7,3268.7,7.96337958]
[1736550547613,4.98310813,3269.5,3268.9,0.472]
[1736550547820,0.30594,3269.1,3268.9,0.77795]
[1736550548021,0.30594,3269.1,3269.0,1.01055813]
[1736550548223,0.30594,3269.1,3268.9,0.77795]
[1736550548420,3.2078,3269.5,3269.0,1.01055813]
[1736550548627,0.30592,3269.3,3269.1,0.30593]
[1736550550931,0.30592,3269.3,3269.2,1.01055813]
[1736550552425,3.2078,3269.5,3269.4,0.30591]
[1736550552628,3.5137,3269.5,3269.3,1.22361]
[1736550553528,3.2078,3269.5,3269.3,0.77621]
[1736550553729,0.30591,3269.4,3269.3,0.77621]
[1736550555731,3.5137,3269.5,3269.3,0.30591]
[1736550556832,3.5137,3269.5,3269.2,1.01055813]
[1736550557033,3.2078,3269.5,3269.0,0.4506]
[1736550557331,0.30593,3269.3,3269.0,1.46115813]
[1736550557536,0.30593,3269.3,3269.2,0.30593]
[1736550557834,0.30593,3269.3,3269.0,1.46115813]
[1736550558035,0.30593,3269.3,3269.1,0.30593]
[1736550562731,0.30593,3269.3,3269.0,1.46115813]
[1736550562930,3.2078,3269.5,3269.0,1.01055813]
[1736550563139,0.30593,3269.1,3269.0,1.01055813]
[1736550563534,0.75633,3269.1,3269.0,1.01055813]
[1736550564532,0.75633,3269.1,3269.0,1.31649813]
[1736550564735,0.4504,3269.1,3269.0,1.31649813]
[1736550570746,3.2078,3269.5,3269.0,2.02111626]
[1736550571044,3.2078,3269.5,3269.4,1.31646813]
[1736550571839,0.8792,3269.6,3269.5,0.3059]
[1736550572749,0.4412,3269.6,3269.5,0.3059]
[1736550572944,3.28088,3269.8,3269.5,0.3059]
[1736550572945,3.4332,3269.8,3269.7,0.30588]
[1736550573142,2.975,3269.8,3269.7,1.31643813]
[1736550576647,0.9221,3270.0,3269.7,1.31643813]
[1736550576947,0.4755,3270.4,3270.3,0.30582]
[1736550577246,3.2078,3270.9,3270.3,1.01055813]
[1736550577452,0.4545,3270.7,3270.6,1.31634813]
[1736550577650,0.76029,3270.7,3270.6,1.31634813]
[1736550578453,0.4545,3270.7,3270.6,1.31634813]
[1736550578752,0.76029,3270.7,3270.6,1.31634813]
[1736550579248,0.4545,3270.7,3270.6,1.31634813]
[1736550584756,0.4545,3270.7,3270.4,0.4366]
[1736550585053,0.76029,3270.7,3270.5,1.31635813]
[1736550585456,0.76029,3270.7,3270.6,0.30579]
[1736550586351,0.4545,3270.7,3270.6,0.30579]
[1736550590860,0.4545,3270.7,3270.5,1.01055813]
[1736550591060,0.4545,3270.7,3270.5,1.31635813]
[1736550592861,0.76029,3270.7,3270.5,1.31635813]
[1736550593762,0.4545,3270.7,3270.5,1.01055813]
[1736550593960,0.4545,3270.7,3270.3,0.30582]
[1736550594162,0.30581,3270.5,3270.4,1.01055813]
[1736550594555,0.4545,3270.7,3270.4,1.01055813]
[1736550594863,0.3058,3270.6,3270.4,1.31636813]
[1736550595958,0.4545,3270.7,3270.6,0.30579]
[1736550596157,0.4545,3270.7,3270.6,1.31634813]
[1736550599565,0.76028,3270.7,3270.5,0.3058]
[1736550599760,0.4545,3270.7,3270.4,1.01055813]
[1736550599963,0.4545,3270.7,3270.6,1.31634813]
[1736550609773,0.4665,3271.0,3270.9,0.30577]
[1736550609970,0.4665,3271.0,3270.9,1.31632813]
[1736550617181,0.8966,3271.2,3271.1,0.30575]
[1736550617375,0.8966,3271.2,3271.1,1.31630813]
[1736550617580,0.74329,3271.8,3271.6,0.3057]
[1736550617880,0.4827,3271.7,3271.6,0.3057]
[1736550624382,0.4827,3271.7,3271.5,1.01055813]
[1736550624383,0.4704,3271.9,3271.8,0.30568]
[1736550624684,0.4704,3271.9,3271.8,1.31623813]
[1736550624879,3.2078,3272.0,3271.8,1.01055813]
[1736550625183,0.79897648,3274.0,3271.8,1.01055813]
[1736550625184,0.9068,3272.4,3272.3,0.30564]
[1736550625379,0.9068,3272.4,3272.3,1.31619813]
[1736550625776,0.4524,3272.4,3272.3,1.31619813]
[1736550625980,3.2078,3272.6,3272.5,0.30562]
[1736550626285,3.2078,3272.6,3272.5,1.31617813]
[1736550627284,3.2078,3272.6,3272.5,0.30562]
[1736550633291,0.30558,3272.9,3272.2,2.13135672]
[1736550633487,1.3455,3273.0,3272.2,2.13135672]
[1736550633691,1.3455,3273.0,3272.8,0.30558]
[1736550634088,0.9068,3273.0,3272.9,0.30558]
[1736550636286,0.9068,3273.0,3272.5,5.33915672]
[1736550636486,0.9068,3273.0,3272.0,4.97116]
[1736550636487,0.30563,3272.5,3272.2,2.13135672]
[1736550636681,0.435,3272.4,3272.0,3.2078]
[1736550636883,0.30564,3272.2,3272.0,3.2078]
[1736550637083,0.30564,3272.2,3272.0,3.51346]
[1736550637285,0.30564,3272.2,3272.0,3.2078]
[1736550637586,0.30564,3272.2,3272.0,3.51346]
[1736550637992,0.30565,3272.1,3272.0,3.2078]